bitfinex/quotes_ETHUSD_20260208
["timestamp","ask_amount","ask_price","bid_price","bid_amount"]
[1770553179636,3.278,2130.8,2130.6,0.001]
[1770553181610,4.69219501,2131.2,2130.6,0.001]
[1770553181611,1.17293797,2131.4,2130.6,0.99644349]
[1770553181814,3.278,2131.3,2130.6,0.99644349]
[1770553182015,3.278,2131.3,2131.2,0.001]
[1770553182216,3.278,2131.3,2130.6,0.99644349]
[1770553182528,3.278,2131.3,2131.0,0.001]
[1770553183719,0.002,2131.4,2131.0,0.001]
[1770553184044,3.28,2131.4,2131.0,0.001]
[1770553185147,3.78,2131.4,2131.0,0.001]
[1770553185529,0.9695328,2131.3,2130.6,0.001]
[1770553185731,0.9695328,2131.1,2130.6,0.001]
[1770553188058,1.27555814,2131.0,2130.2,0.99544349]
[1770553188273,3.279,2130.9,2130.2,0.99544349]
[1770553191763,1.17326825,2130.8,2130.2,0.99544349]
[1770553192346,1.17326825,2130.8,2130.1,0.001]
[1770553192347,0.9695328,2130.7,2130.1,0.001]
[1770553194882,3.279,2130.6,2130.1,0.99644349]
[1770553195046,3.279,2130.6,2130.1,0.001]
[1770553195245,4.2485328,2130.6,2130.1,0.001]
[1770553195475,4.2485328,2130.6,2130.4,0.001]
[1770553195680,3.281,2130.6,2130.4,0.001]
[1770553196194,0.002,2130.6,2130.1,0.99644349]
[1770553196659,0.002,2130.6,2130.2,0.99544349]
[1770553196861,0.002,2130.6,2130.1,0.001]
[1770553197158,0.002,2130.6,2130.1,0.99644349]
[1770553198153,0.002,2130.6,2130.1,1.17464489]
[1770553198383,0.002,2130.6,2130.2,0.99544349]
[1770553198688,0.002,2130.8,2130.4,0.99544349]
[1770553200688,0.002,2130.8,2130.5,0.99544349]
[1770553202803,0.9715328,2130.8,2130.1,0.001]
[1770553204879,1.17332332,2130.7,2130.1,0.001]
[1770553205080,3.28,2130.6,2130.1,0.001]
[1770553205401,3.28,2130.6,2130.1,0.99644349]
[1770553206685,3.28,2130.6,2130.1,0.001]
[1770553206991,3.28,2130.6,2130.1,0.96770198]
[1770553207796,4.45337974,2130.6,2130.1,0.96770198]
[1770553208099,4.45337974,2130.6,2130.3,0.001]
[1770553208291,4.45537974,2130.6,2130.3,0.001]
[1770553208873,3.282,2130.6,2130.3,0.001]
[1770553209079,1.17538994,2130.6,2130.3,0.001]
[1770553211085,0.002,2130.6,2130.3,0.001]
[1770553212014,0.002,2130.6,2130.1,0.001]
[1770553212332,0.96714872,2130.3,2129.0,0.96670198]
[1770553212483,0.96714872,2130.1,2129.0,2.14092746]
[1770553212682,0.96714872,2130.1,2128.9,0.001]
[1770553212883,1.00938638,2130.1,2128.9,0.001]
[1770553213179,0.96714872,2129.9,2128.9,0.001]
[1770553214286,0.95288102,2129.7,2128.9,0.001]
[1770553214485,0.95288102,2129.5,2128.9,0.001]
[1770553214890,1.17370892,2130.0,2128.9,0.001]
[1770553214891,1.17370892,2130.0,2128.9,0.9219558]
[1770553215112,4.69483568,2130.1,2129.0,2.09521601]
[1770553215386,4.69483568,2130.1,2129.0,0.9209558]
[1770553215387,0.95288102,2130.0,2129.0,0.9209558]
[1770553215587,0.95288102,2130.0,2128.9,2.09626416]
[1770553216531,0.95288102,2130.0,2129.0,0.9209558]
[1770553216904,4.23288102,2130.0,2129.0,0.9209558]
[1770553217126,1.17376402,2129.9,2129.1,1.17420506]
[1770553217298,1.17376402,2129.9,2129.0,2.09519567]
[1770553217505,2.12664504,2129.9,2129.0,1.17425799]
[1770553217724,0.5,2129.7,2129.0,1.17425799]
[1770553217924,0.5,2129.7,2129.0,2.09521379]
[1770553218924,4.45375085,2130.0,2129.0,2.09521379]
[1770553219122,4.69427446,2130.3,2128.9,4.6982427]
[1770553219123,1.17354363,2130.3,2129.3,0.9209558]
[1770553219502,0.002,2130.6,2129.7,0.9209558]
[1770553220524,1.17538361,2130.6,2129.7,0.9209558]
[1770553220751,1.17538302,2130.6,2129.7,0.9209558]
[1770553220952,0.002,2130.4,2129.7,0.9209558]
[1770553221146,0.002,2130.4,2129.8,1.17381913]
[1770553221440,0.002,2130.4,2129.8,2.09477493]
[1770553221628,0.002,2130.4,2129.8,1.17381913]
[1770553221938,0.002,2130.4,2129.9,0.9209558]
[1770553224138,0.002,2130.4,2130.1,0.9209558]
[1770553224839,0.002,2130.4,2129.9,1.17375211]
[1770553225625,0.002,2130.4,2129.9,2.09470791]
[1770553225840,2.12785239,2131.4,2130.1,0.04223766]
[1770553226059,1.17497137,2131.4,2130.3,0.9209558]
[1770553226358,0.002,2131.4,2130.5,0.9209558]
[1770553227033,0.002,2131.4,2130.7,0.04223766]
[1770553227232,0.002,2131.4,2130.8,0.9209558]
[1770553227867,0.002,2131.6,2130.9,0.9209558]
[1770553228156,0.002,2131.6,2131.1,0.9209558]
[1770553230664,0.002,2131.6,2131.2,1.17304804]
[1770553230853,0.002,2131.6,2131.0,1.17311439]
[1770553231054,0.002,2131.6,2130.9,1.17318799]
[1770553231947,0.002,2131.6,2131.1,1.17310112]
[1770553232861,0.95488102,2132.5,2131.2,0.9209558]
[1770553233062,2.12725269,2132.5,2131.3,0.9209558]
[1770553234247,0.002,2131.4,2131.3,0.9209558]
[1770553234442,2.12725269,2132.5,2131.3,0.9209558]
[1770553234847,0.002,2131.6,2131.3,0.9209558]
[1770553235049,2.12725269,2132.5,2131.4,1.17293797]
[1770553236263,2.12725269,2132.5,2131.4,2.10122867]
[1770553238446,2.12725269,2132.5,2131.5,0.9282907]
[1770553239055,0.93405475,2132.4,2131.3,1.17295985]
[1770553239351,0.93405475,2132.2,2131.3,1.17298752]
[1770553239763,1.1724429,2132.3,2131.3,2.10127822]
[1770553239964,1.17242951,2132.4,2131.4,0.9282907]
[1770553242474,0.002,2132.5,2131.5,2.10117364]
[1770553242677,0.93605475,2132.5,2131.5,1.17288294]
[1770553243378,0.93605475,2132.5,2131.3,2.10125635]
[1770553243675,0.93605475,2132.5,2131.4,1.17292971]
[1770553244258,0.93605475,2132.5,2131.3,2.10126506]
[1770553245184,0.93405475,2132.3,2130.8,0.9282907]
[1770553245478,1.17238791,2132.4,2130.3,0.9282907]
[1770553245479,0.93405475,2131.7,2130.3,0.9282907]
[1770553245673,0.93405475,2131.7,2129.4,3.87223766]
[1770553245674,0.93405475,2131.7,2130.2,1.17359163]
[1770553245975,0.93405475,2131.5,2130.5,2.10169127]
[1770553246166,0.93405475,2131.8,2130.8,1.17326652]
[1770553246373,4.21205475,2131.7,2130.7,1.17328123]
[1770553247078,3.278,2131.7,2131.5,0.001]
[1770553247257,1.17282792,2131.6,2131.5,0.001]
[1770553249278,1.17282792,2131.6,2131.3,0.001]
[1770553251851,7.96911239,2131.7,2131.3,0.001]
[1770553251852,1.1727863,2131.7,2131.3,0.001]
[1770553252459,1.1727553,2131.8,2131.3,0.001]
[1770553253675,1.17260787,2132.0,2131.3,0.001]
[1770553254991,1.17259382,2132.1,2131.3,0.9292907]
[1770553255279,1.17259382,2132.1,2131.3,0.001]
[1770553255669,1.17259382,2132.1,2131.3,1.173993]
[1770553256664,1.17259382,2132.1,2131.3,2.1022837]
[1770553256871,4.45050132,2132.2,2131.4,0.9282907]
[1770553257977,4.45050132,2132.2,2131.5,2.10117364]
[1770553258165,4.45050875,2132.2,2131.6,0.9282907]
[1770553260172,4.45050875,2132.2,2131.4,5.61994247]
[1770553260388,4.45050875,2132.2,2131.5,1.17384819]
[1770553260589,0.002,2131.9,2131.5,1.17384819]
[1770553260895,0.002,2131.9,2131.6,1.17282742]
[1770553262586,0.002,2131.9,2131.6,0.9282907]
[1770553263190,0.002,2131.9,2131.5,0.001]
[1770553264687,1.17466288,2131.9,2131.5,0.001]
[1770553265292,0.93405475,2131.8,2131.5,0.001]
[1770553266169,0.93405475,2131.8,2131.3,0.001]
[1770553266397,1.17466288,2131.9,2130.6,1.1733546]
[1770553266398,0.98871301,2131.6,2130.6,1.1733546]
[1770553266572,0.98871301,2131.6,2130.7,1.17331641]
[1770553267170,2.16159595,2131.5,2130.6,1.17337839]
[1770553267477,2.16159595,2131.5,2130.5,2.13062338]
[1770553267673,1.17288294,2131.5,2130.6,0.95722897]
[1770553269466,4.69153178,2131.6,2130.7,2.13055229]
[1770553272886,0.002,2131.9,2131.4,0.95722897]
[1770553273090,0.002,2131.9,2131.3,3.278]
[1770553273290,0.002,2131.9,2131.3,3.32023766]
[1770553273480,0.002,2131.4,2131.3,3.32023766]
[1770553273682,0.002,2131.9,2131.4,1.17293797]
[1770553273902,0.002,2131.6,2131.4,2.16051305]
[1770553275189,0.002,2131.9,2131.4,2.16051305]
[1770553276198,0.002,2131.9,2131.4,0.98757508]
[1770553276492,0.002,2131.9,2131.3,4.45094683]
[1770553276697,0.97543173,2131.9,2131.1,1.17310089]
[1770553277015,0.002,2131.9,2131.3,1.17298791]
[1770553277307,0.002,2131.9,2131.4,1.17292498]
[1770553277612,0.002,2131.9,2131.4,2.16050006]
[1770553277791,0.002,2131.9,2131.4,1.17292498]
[1770553277985,0.002,2131.9,2131.5,0.98757508]
[1770553280106,0.002,2131.9,2131.5,2.16045146]
[1770553280307,0.002,2131.9,2131.5,0.98757508]
[1770553281510,0.002,2132.1,2131.5,0.98757508]
[1770553281701,0.002,2132.1,2131.4,1.17290247]
[1770553282043,2.1460396,2132.0,2131.1,0.98757508]
[1770553283288,1.17260787,2132.0,2131.1,0.98757508]
[1770553283494,4.69037049,2132.4,2131.1,0.98757508]
[1770553283495,1.17318793,2132.4,2131.8,0.98757508]
[1770553283722,0.97343173,2132.3,2131.4,4.26557508]
[1770553284194,1.17249788,2132.2,2131.5,1.17288294]
[1770553287228,0.002,2132.0,2131.5,1.17288294]
[1770553288803,0.002,2132.0,2131.5,2.16045802]
[1770553289002,0.002,2132.0,2131.6,0.98757508]
[1770553289399,0.002,2132.0,2131.8,0.98757508]
[1770553289604,0.002,2132.0,2131.7,0.04223766]
[1770553289605,0.002,2132.2,2132.0,0.98757508]
[1770553289819,0.002,2132.5,2132.0,0.98757508]
[1770553290729,0.002,2132.5,2132.0,1.02981274]
[1770553291228,0.002,2132.5,2132.1,1.17255288]
[1770553291405,0.002,2132.5,2132.1,2.16012796]
[1770553291605,0.002,2132.5,2132.2,0.98757508]
[1770553292222,0.002,2132.5,2132.1,1.17255288]
[1770553292409,0.002,2132.8,2132.1,2.16012796]
[1770553292607,0.002,2132.8,2132.2,0.98757508]
[1770553293026,0.002,2132.8,2132.1,1.17255288]
[1770553294226,0.002,2132.8,2132.2,0.98757508]
[1770553295318,0.002,2132.8,2132.3,1.1724429]
[1770553298109,0.002,2132.8,2132.0,0.04223766]
[1770553298110,0.9743316,2132.8,2132.0,1.17256056]
[1770553299012,0.9743316,2132.8,2131.9,3.278]
[1770553299236,0.9743316,2132.8,2131.4,0.98644192]
[1770553299436,0.9743316,2132.8,2131.4,5.43632874]
[1770553299738,0.9723316,2132.6,2131.4,5.43632874]
[1770553300043,0.9743316,2132.6,2131.4,5.43632874]
[1770553300253,0.9743316,2132.6,2131.4,4.44988682]
[1770553300742,0.9743316,2132.6,2131.3,5.67928747]
[1770553300743,0.9743316,2132.6,2131.3,0.98744192]
[1770553300959,0.9743316,2132.6,2131.4,1.17293549]
[1770553301454,0.9743316,2132.6,2131.4,1.17293509]
[1770553301653,0.9743316,2132.6,2131.3,0.98744192]
[1770553301654,0.9723316,2132.4,2131.3,0.98744192]
[1770553302846,0.9723316,2132.4,2131.3,0.001]
[1770553304144,0.9723316,2132.2,2131.3,0.001]
[1770553304938,0.9723316,2132.2,2131.3,0.98744192]
[1770553305140,0.9723316,2132.2,2131.3,0.001]
[1770553305141,0.9723316,2132.1,2131.3,0.001]
[1770553306961,2.14493947,2132.0,2131.3,0.001]
[1770553308160,0.9723316,2131.9,2131.3,0.001]
[1770553309439,0.9723316,2131.7,2131.3,0.001]
[1770553309635,0.9723316,2131.7,2131.0,0.001]
[1770553310764,1.17271789,2131.8,2131.0,0.001]
[1770553311265,2.14504949,2131.8,2131.0,0.001]
[1770553311767,0.9723316,2131.7,2131.0,0.001]
[1770553311967,0.9723316,2131.7,2131.5,0.001]
[1770553312266,0.9723316,2131.7,2131.3,0.001]
[1770553313372,0.9723316,2131.7,2131.0,0.001]
[1770553314671,1.17282792,2131.6,2131.0,0.001]
[1770553314865,2.14515952,2131.6,2131.0,0.001]
[1770553315879,4.2503316,2131.9,2131.0,0.001]
[1770553316083,4.45069711,2131.9,2131.0,0.98744192]
[1770553317170,4.45069711,2131.9,2131.1,1.17310309]
[1770553318976,0.9723316,2131.8,2131.1,1.17310309]
[1770553319757,0.9723316,2131.8,2131.0,0.001]
[1770553319758,2.14509952,2131.8,2131.0,0.001]
[1770553320074,2.14509952,2131.8,2131.0,0.98744192]
[1770553321282,2.14509952,2131.8,2131.0,0.001]
[1770553321780,2.14515952,2131.6,2131.0,0.001]
[1770553321983,0.9723316,2131.5,2131.0,0.001]
[1770553324159,1.17293797,2131.4,2131.0,0.001]
[1770553326593,1.17293797,2131.4,2130.6,5.68085402]
[1770553326594,0.93242835,2131.2,2130.6,0.001]
[1770553326781,0.93242835,2131.0,2129.8,4.69707349]
[1770553326964,0.93242835,2131.2,2130.1,1.17361397]
[1770553327279,0.93242835,2131.2,2130.1,1.17362307]
[1770553327676,0.93242835,2131.2,2129.8,1.17558474]
[1770553327871,0.93242835,2131.2,2129.9,1.17375825]
[1770553328291,0.93242835,2131.2,2129.8,1.17558212]
[1770553328665,0.93242835,2131.0,2129.8,1.17558212]
[1770553329094,0.93242835,2130.8,2129.8,0.0018]
[1770553329306,0.1024,2130.9,2129.8,0.0018]
[1770553329307,0.93242835,2130.6,2129.8,0.0018]
[1770553329682,0.93242835,2130.4,2129.8,0.0018]
[1770553330268,0.93242835,2130.2,2129.3,0.001]
[1770553330673,0.93242835,2130.0,2129.3,0.001]
[1770553330892,0.93242835,2129.8,2129.3,0.001]
[1770553331982,1.03482835,2129.7,2128.8,1.17436303]
[1770553332492,0.93242835,2129.7,2128.8,1.17434131]
[1770553332692,1.17392937,2129.6,2128.8,1.17434131]
[1770553333795,3.279,2129.9,2128.9,0.99524441]
[1770553334194,4.45276565,2129.9,2128.9,0.99524441]
[1770553334393,1.1736866,2130.1,2129.0,0.04223766]
[1770553334593,4.79618907,2130.5,2129.0,0.04223766]
[1770553334594,1.17354363,2130.3,2129.2,0.92435809]
[1770553334801,4.69408152,2130.4,2129.3,1.17409477]
[1770553334993,4.69408152,2130.4,2129.4,0.92435809]
[1770553336414,5.5994284,2130.4,2129.4,0.92535809]
[1770553336618,4.69408152,2130.4,2129.4,0.92535809]
[1770553336811,5.5994284,2130.4,2129.4,0.92535809]
[1770553337017,5.5994284,2130.4,2129.5,1.1739845]
[1770553337516,4.69408152,2130.4,2129.5,2.09834259]
[1770553338622,4.69381488,2130.5,2129.5,2.09834259]
[1770553338918,2.0786702,2130.7,2129.6,2.0982363]
[1770553339221,0.90534688,2130.6,2129.6,2.0982363]
[1770553339408,4.45331114,2130.8,2129.7,0.92435809]
[1770553339597,5.35865802,2130.8,2129.7,0.92435809]
[1770553341111,5.35865802,2130.8,2129.5,1.1739467]
[1770553341112,0.90534688,2130.7,2129.5,1.1739467]
[1770553341423,0.94758454,2130.7,2129.5,1.17398097]
[1770553341620,0.90534688,2130.7,2129.8,0.92435809]
[1770553341818,1.17331114,2130.8,2129.8,0.92435809]
[1770553342407,2.07865802,2130.8,2129.8,0.92435809]
[1770553344396,0.90534688,2130.7,2129.8,1.17378748]
[1770553346236,0.90534688,2130.7,2129.4,0.92535809]
[1770553346422,1.17337839,2130.6,2129.6,1.17392937]
[1770553346730,2.07872527,2130.6,2129.6,1.17392937]
[1770553347807,2.07872527,2130.6,2129.6,2.09828746]
[1770553349231,2.08072527,2130.6,2129.6,2.09828746]
[1770553350916,2.08072527,2130.6,2129.7,0.92435809]
[1770553351118,2.08072527,2130.6,2129.7,1.17386372]
[1770553351321,0.90534688,2130.5,2129.7,1.17386372]
[1770553352725,0.90534688,2130.5,2129.4,5.62138089]
[1770553352951,0.90534688,2130.5,2129.5,1.17394412]
[1770553353246,1.17348854,2130.4,2129.5,1.17394412]
[1770553353427,0.90534688,2130.3,2129.5,1.17394412]
[1770553355352,1.17359872,2130.2,2129.5,1.17394412]
[1770553355651,1.17359872,2130.2,2129.4,2.09936163]
[1770553355854,2.0789456,2130.2,2129.4,1.17500354]
[1770553356055,1.17359872,2130.2,2129.4,0.001]
[1770553356228,0.90741949,2130.1,2129.4,0.001]
[1770553357450,1.17370892,2130.0,2129.4,0.001]
[1770553360354,0.90741949,2130.0,2129.4,0.001]
[1770553361135,4.45359872,2130.3,2129.4,0.97039992]
[1770553361136,4.45357189,2130.3,2129.4,0.97039992]
[1770553361341,4.45354438,2130.3,2129.4,0.97039992]
[1770553362058,0.002,2129.9,2129.4,0.97039992]
[1770553362229,0.002,2129.9,2129.6,0.96939992]
[1770553362431,3.28,2130.3,2129.5,1.1739845]
[1770553362663,0.002,2130.6,2130.1,0.96939992]
[1770553364359,0.002,2130.6,2130.2,2.14299864]
[1770553365952,0.002,2130.6,2130.0,1.17367906]
[1770553366154,0.002,2130.6,2129.9,2.14314778]
[1770553366359,0.90941949,2130.6,2129.6,0.96939992]
[1770553366531,0.90941949,2130.6,2129.6,1.17389832]
[1770553366856,0.90941949,2130.6,2129.7,1.17386905]
[1770553367936,0.90941949,2130.6,2129.6,1.1739106]
[1770553368236,0.90741949,2130.3,2129.4,1.17500892]
[1770553368543,1.17359872,2130.2,2129.4,0.001]
[1770553369137,2.08101821,2130.2,2129.4,0.001]
[1770553369751,1.17359872,2130.2,2129.4,0.97039992]
[1770553371039,2.08101821,2130.2,2129.4,0.001]
[1770553371752,1.17359872,2130.2,2129.5,0.96939992]
[1770553373459,4.69439489,2130.3,2129.5,0.96939992]
[1770553374154,0.002,2130.0,2129.5,0.96939992]
[1770553375973,0.002,2130.0,2129.4,0.001]
[1770553376969,0.90941949,2130.0,2129.4,0.001]
[1770553378042,1.17376402,2129.9,2129.4,0.001]
[1770553380071,0.002,2130.0,2129.5,2.14338442]
[1770553380451,0.002,2130.0,2129.6,0.96939992]
[1770553382252,0.002,2130.0,2129.7,2.14327417]
[1770553382455,0.002,2130.0,2129.8,0.96939992]
[1770553382849,4.45640998,2130.6,2130.0,0.96939992]
[1770553382850,0.002,2130.6,2130.0,0.96939992]
[1770553384554,0.002,2130.6,2130.1,1.17365381]
[1770553384757,0.002,2130.6,2130.1,2.14305373]
[1770553387287,0.002,2130.4,2130.1,1.17363737]
[1770553388996,0.002,2130.4,2129.7,0.001]
[1770553389291,0.99781371,2130.4,2129.7,0.001]
[1770553389483,0.99781371,2130.4,2129.7,1.17486656]
[1770553389986,0.99781371,2130.4,2129.9,1.17375386]
[1770553390181,0.002,2130.4,2129.9,1.17375386]
[1770553390370,0.002,2130.4,2129.7,5.66514189]
[1770553390371,0.002,2130.4,2129.8,1.17377552]
[1770553390967,0.002,2130.4,2129.9,1.17375327]
[1770553391291,0.002,2130.4,2129.8,1.17381913]
[1770553391788,0.002,2130.4,2129.7,2.14351026]
[1770553392174,0.002,2130.4,2129.7,1.17483812]
[1770553392378,0.99781371,2130.4,2129.7,1.17483812]
[1770553393469,1.17354363,2130.3,2129.7,0.001]
[1770553393687,2.14158996,2130.3,2129.7,0.001]
[1770553393891,2.07679156,2130.3,2129.7,0.001]
[1770553394189,1.98420335,2130.3,2129.7,0.001]
[1770553394382,1.97198875,2130.3,2129.7,0.001]
[1770553395185,1.17552791,2130.4,2129.7,0.001]
[1770553395794,0.002,2130.4,2129.7,0.001]
[1770553396184,0.9426093,2130.4,2129.7,0.001]
[1770553397790,1.17354363,2130.3,2129.7,0.001]
[1770553398297,2.11415293,2130.3,2129.7,0.001]
[1770553399401,0.002,2130.4,2129.8,0.99485197]
[1770553399571,0.002,2130.4,2130.0,0.99485197]
[1770553399897,0.002,2130.4,2130.1,1.17365381]
[1770553400673,0.9426093,2130.4,2129.9,0.001]
[1770553401687,0.002,2130.4,2130.1,0.99485197]
[1770553402008,0.002,2130.4,2130.1,2.16846254]
[1770553402175,0.002,2130.4,2130.0,1.17370817]
[1770553402878,0.002,2130.4,2129.9,0.001]
[1770553404991,0.9426093,2130.4,2129.9,0.001]
[1770553406473,1.17354363,2130.3,2129.9,0.001]
[1770553409384,2.1161346,2130.4,2129.9,0.001]
[1770553409882,0.9406093,2130.3,2129.9,0.001]
[1770553411202,0.9406093,2130.1,2129.9,0.001]
[1770553411382,0.89430013,2130.1,2129.9,0.001]
[1770553411582,0.88597784,2130.1,2129.9,0.001]
[1770553411915,1.17357347,2130.3,2129.9,0.001]
[1770553412909,1.17357347,2130.3,2130.1,0.001]
[1770553413108,4.69596985,2130.4,2130.1,0.001]
[1770553413109,0.002,2130.4,2130.1,0.001]
[1770553416819,0.93181038,2130.4,2130.1,0.001]
[1770553417396,1.17354363,2130.3,2130.1,0.001]
[1770553420512,2.10534087,2130.4,2130.1,0.001]
[1770553420899,2.10530322,2130.4,2130.1,0.001]
[1770553421703,1.17549284,2130.4,2130.1,0.001]
[1770553423231,0.002,2130.4,2130.1,0.001]
[1770553426423,0.002,2130.4,2130.3,0.001]
[1770553433039,0.002,2130.4,2129.9,1.17476001]
[1770553433209,0.002,2130.4,2129.9,0.001]
[1770553433413,0.002,2130.4,2129.9,1.17476022]
[1770553434138,0.002,2130.4,2129.9,0.001]
[1770553439550,0.002,2130.4,2130.1,0.001]
[1770553439719,0.002,2130.2,2130.1,0.001]
[1770553454053,0.002,2130.2,2129.9,0.001]
[1770553454054,0.99753309,2130.2,2129.9,0.001]
[1770553454358,0.002,2130.2,2129.9,0.001]
[1770553457654,1.17559872,2130.2,2129.9,0.001]
[1770553459728,0.002,2130.2,2129.9,0.90431989]
[1770553461855,0.002,2130.2,2129.9,2.07808364]
[1770553462061,0.002,2130.2,2129.9,0.90431989]
[1770553462535,0.002,2130.2,2129.9,2.07807685]
[1770553463662,0.002,2130.2,2130.1,0.001]
[1770553468772,0.002,2130.2,2130.1,0.001]
[1770553481983,0.002,2130.2,2130.1,0.90114598]
[1770553482574,0.002,2130.2,2130.1,2.07479979]
[1770553485469,0.002,2130.2,2130.1,1.17465381]
[1770553485661,0.002,2130.2,2130.1,0.001]
[1770553486070,0.002,2130.2,2130.1,1.17465381]
[1770553490089,0.002,2130.2,2130.0,0.001]
[1770553493996,0.002,2130.2,2130.0,0.90114598]
[1770553494863,0.002,2130.2,2130.0,2.07485398]
[1770553496599,0.002,2130.4,2130.1,0.90014598]
[1770553496899,0.002,2130.4,2129.2,0.90114598]
[1770553496900,0.94371868,2130.1,2129.2,0.90114598]
[1770553497109,0.94371868,2130.1,2129.4,0.32086449]
[1770553499872,2.1174276,2130.0,2129.5,0.31986449]
[1770553500292,2.1174276,2130.0,2129.4,0.001]
[1770553500497,2.1174276,2130.0,2129.5,0.31986449]
[1770553500796,2.1174276,2130.0,2129.5,0.31486449]
[1770553501000,0.94371868,2130.3,2129.6,0.90014598]
[1770553501194,5.63790377,2130.3,2129.6,0.90014598]
[1770553501396,0.94371868,2130.2,2129.5,0.31486449]
[1770553501586,0.002,2130.0,2129.5,0.31486449]
[1770553502099,0.002,2130.0,2129.4,0.90114598]
[1770553502305,0.002,2130.0,2129.6,0.90014598]
[1770553502676,0.002,2130.0,2129.7,0.31486449]
[1770553503075,0.002,2130.0,2129.7,1.21501047]
[1770553504505,0.002,2130.4,2129.9,0.90014598]
[1770553505806,0.002,2130.4,2130.1,0.93663788]
[1770553506182,0.002,2130.4,2130.0,0.31286449]
[1770553506604,0.002,2130.4,2130.1,1.17365381]
[1770553506808,0.94484616,2130.4,2130.0,0.31286449]
[1770553507105,0.002,2130.4,2130.0,1.48656643]
[1770553507326,0.002,2130.4,2130.1,0.93663788]
[1770553509789,0.002,2130.4,2130.2,1.17359872]
[1770553512310,0.002,2130.4,2130.3,1.48640812]
[1770553512497,0.002,2130.4,2130.3,1.17354363]
[1770553516525,0.002,2130.4,2130.1,0.99997609]
[1770553517018,0.002,2130.4,2130.2,0.31286449]
[1770553518734,0.002,2130.4,2130.3,1.17354363]
[1770553519334,0.002,2130.4,2130.3,1.48640812]
[1770553520235,0.002,2130.4,2130.1,1.1736157]
[1770553520410,0.002,2130.4,2130.1,1.48648019]
[1770553520802,0.002,2130.4,2130.1,0.31286449]
[1770553521000,0.90503681,2130.4,2129.7,4.69539229]
[1770553521216,0.90503681,2130.4,2129.9,1.17374142]
[1770553521503,0.002,2130.4,2130.2,0.99997609]
[1770553521813,0.002,2130.6,2130.2,0.99997609]
[1770553522126,0.002,2130.6,2130.3,0.31086449]
[1770553523037,0.002,2130.6,2130.3,1.48440679]
[1770553526963,0.002,2130.4,2130.3,1.48440679]
[1770553528447,0.002,2130.6,2130.3,1.48440679]
[1770553529175,0.002,2130.6,2130.3,2.48438288]
[1770553531864,0.002,2130.8,2130.6,0.99997609]
[1770553532272,0.002,2130.8,2130.7,0.31086449]
[1770553532669,0.002,2131.0,2130.7,0.31086449]
[1770553533186,0.0028,2131.1,2130.8,0.99997609]
[1770553533468,0.0008,2131.0,2130.8,0.99997609]
[1770553533633,0.0008,2131.0,2130.9,1.31084058]
[1770553533837,0.002,2131.2,2131.0,2.17313423]
[1770553534136,0.002,2131.5,2131.2,0.99997609]
[1770553535161,0.002,2131.7,2131.3,0.99997609]
[1770553536172,0.002,2131.7,2131.5,0.91208075]
[1770553536539,0.002,2131.7,2131.6,1.21614524]
[1770553536742,2.15523748,2132.4,2131.6,1.21614524]
[1770553536941,0.98284724,2132.3,2131.6,1.21614524]
[1770553538468,0.98284724,2132.3,2131.7,1.1727729]
[1770553538839,0.98284724,2132.3,2131.8,0.30406449]
[1770553540145,0.002,2132.1,2131.8,0.30406449]
[1770553540343,0.002,2132.1,2131.9,0.30406449]
[1770553541056,0.002,2132.1,2131.9,1.17265523]
[1770553541367,0.002,2132.1,2132.0,0.30406449]
[1770553541866,0.002,2132.1,2131.5,0.91208075]
[1770553542048,0.98484724,2132.1,2131.7,1.17276361]
[1770553542658,0.002,2132.1,2131.8,0.30406449]
[1770553545152,0.98284724,2132.0,2131.2,0.91208075]
[1770553545356,0.98284724,2132.0,2130.6,0.91208075]
[1770553545678,0.98284724,2132.0,2130.8,1.1732544]
[1770553545968,0.98284724,2131.7,2130.8,1.17326661]
[1770553546180,0.98284724,2131.7,2130.9,0.30406449]
[1770553547169,0.98284724,2131.5,2130.9,0.30406449]
[1770553548097,0.98284724,2131.5,2130.5,0.001]
[1770553548278,1.0250849,2131.5,2130.5,0.30506449]
[1770553549387,0.98284724,2131.3,2130.5,0.30506449]
[1770553549784,1.17293797,2131.4,2130.3,0.001]
[1770553549785,0.98284724,2131.1,2130.3,0.001]
[1770553549986,0.98284724,2131.0,2130.4,0.30406449]
[1770553551162,0.7,2130.8,2130.3,0.001]
[1770553551365,2.15622563,2130.6,2130.3,0.001]
[1770553551890,0.98284724,2130.5,2130.3,0.001]
[1770553553272,2.15630901,2130.5,2130.3,0.001]
[1770553553899,2.15600538,2131.0,2130.3,0.001]
[1770553554079,0.98284724,2130.9,2130.3,0.001]
[1770553554791,5.43398735,2131.1,2130.3,0.91308075]
[1770553555495,0.98284724,2131.0,2130.3,1.17451035]
[1770553556282,0.98284724,2131.0,2130.3,0.001]
[1770553557681,1.17321319,2130.9,2130.3,0.001]
[1770553557881,2.15602609,2131.0,2130.3,0.91308075]
[1770553558884,4.45114445,2131.1,2130.3,0.91308075]
[1770553560095,4.45114445,2131.1,2130.4,2.08556929]
[1770553561274,4.45110706,2131.1,2130.4,2.08556929]
[1770553561677,0.98284724,2131.0,2130.3,1.17450555]
[1770553562104,1.17321319,2130.9,2130.3,0.001]
[1770553562403,0.98284724,2130.8,2130.3,0.001]
[1770553563907,1.17320052,2131.0,2130.3,0.91308075]
[1770553564109,1.17320052,2131.0,2130.3,2.0865955]
[1770553564808,1.17320052,2131.0,2130.5,0.001]
[1770553565107,0.002,2130.6,2130.5,0.001]
[1770553586322,0.002,2130.6,2130.3,0.001]
[1770553586323,0.97387237,2130.6,2130.3,0.001]
[1770553586522,0.002,2130.6,2130.3,0.001]
[1770553587533,0.002,2130.6,2130.4,0.98610734]
[1770553587712,0.002,2130.6,2130.3,0.001]
[1770553588436,0.002,2130.6,2130.3,0.98710734]
[1770553590735,0.002,2130.4,2130.3,2.16065097]
[1770553592539,0.002,2130.6,2130.4,0.98610734]